[Event "Late-Titled-Tuesday-Blitz-December-26-2023"]
[Site "Chess.com"]
[Date "2023.12.26"]
[Round "2"]
[White "Bala-Afiada"]
[Black "Flaccidmoves"]
[Result "0-1"]
[WhiteElo "2015"]
[BlackElo "2413"]
[TimeControl "180+1"]
[EndTime "14:17:45 PST"]
[Termination "Flaccidmoves won by resignation"]

1. d4 {[%clk 0:03:00.9]} 1... g6 {[%clk 0:03:00.3]} 2. c4 {[%clk 0:03:00.4]}
2... Bg7 {[%clk 0:03:00.5]} 3. Nc3 {[%clk 0:03:00.3]} 3... c5 {[%clk 0:02:59.4]}
4. d5 {[%clk 0:03:00.4]} 4... Bxc3+ {[%clk 0:03:00]} 5. bxc3 {[%clk 0:03:00.4]}
5... f5 {[%clk 0:03:00.7]} 6. f3 {[%clk 0:03:00.1]} 6... Nf6 {[%clk 0:02:58.3]}
7. Qc2 {[%clk 0:02:59.5]} 7... Qa5 {[%clk 0:02:54.2]} 8. Bd2 {[%clk 0:02:54.7]}
8... d6 {[%clk 0:02:48.2]} 9. e4 {[%clk 0:02:54.6]} 9... Nbd7 {[%clk 0:02:25.6]}
10. Bd3 {[%clk 0:02:53.5]} 10... Ne5 {[%clk 0:02:21.5]} 11. Ne2 {[%clk
0:02:51.4]} 11... O-O {[%clk 0:02:12.3]} 12. O-O {[%clk 0:02:48]} 12... fxe4
{[%clk 0:02:08.5]} 13. fxe4 {[%clk 0:02:41.2]} 13... Bd7 {[%clk 0:02:02.8]} 14.
Bh6 {[%clk 0:02:32.3]} 14... Rf7 {[%clk 0:01:52.2]} 15. Nf4 {[%clk 0:02:24.6]}
15... Nfg4 {[%clk 0:01:50.3]} 16. Bg5 {[%clk 0:01:54.4]} 16... Ne3 {[%clk
0:01:49.8]} 17. Qd2 {[%clk 0:01:53.7]} 17... Nxf1 {[%clk 0:01:49.3]} 18. Rxf1
{[%clk 0:01:54.6]} 18... Raf8 {[%clk 0:01:47.4]} 19. Bh6 {[%clk 0:01:46.8]}
19... Re8 {[%clk 0:01:47.4]} 20. Ne6 {[%clk 0:01:35.1]} 20... Rxf1+ {[%clk
0:01:15.8]} 21. Bxf1 {[%clk 0:01:36]} 21... Nf7 {[%clk 0:01:15.9]} 22. h3 {[%clk
0:01:05.7]} 22... Nxh6 {[%clk 0:01:14.3]} 23. Qxh6 {[%clk 0:01:06.6]} 23... Bxe6
{[%clk 0:01:12.6]} 24. dxe6 {[%clk 0:01:07.5]} 24... Qxc3 {[%clk 0:01:09.5]} 25.
Qg5 {[%clk 0:00:51]} 25... Qf6 {[%clk 0:01:07.1]} 26. Qg4 {[%clk 0:00:49.3]}
26... Rf8 {[%clk 0:01:06.8]} 27. Be2 {[%clk 0:00:47.2]} 27... Qf2+ {[%clk
0:00:58.8]} 28. Kh1 {[%clk 0:00:47]} 28... Rf4 {[%clk 0:00:55.3]} 29. Qg5 {[%clk
0:00:32.7]} 29... Rf6 {[%clk 0:00:55.8]} 30. Qg4 {[%clk 0:00:30.4]} 30... Qf4
{[%clk 0:00:54.5]} 31. Kg1 {[%clk 0:00:25.2]} 31... Qxg4 {[%clk 0:00:53.7]} 32.
Bxg4 {[%clk 0:00:26.1]} 32... Kf8 {[%clk 0:00:50.4]} 33. Kh2 {[%clk 0:00:26.1]}
33... Ke8 {[%clk 0:00:50.5]} 34. Kg3 {[%clk 0:00:26.5]} 34... Kd8 {[%clk
0:00:50.8]} 35. Kh4 {[%clk 0:00:27.1]} 35... h6 {[%clk 0:00:50.1]} 36. Kg3
{[%clk 0:00:26.6]} 36... Kc7 {[%clk 0:00:50.3]} 37. h4 {[%clk 0:00:27.2]} 37...
Kb6 {[%clk 0:00:49.7]} 38. h5 {[%clk 0:00:27.7]} 38... g5 {[%clk 0:00:49.6]} 39.
Bf5 {[%clk 0:00:27.6]} 39... Ka5 {[%clk 0:00:48.2]} 40. Kf3 {[%clk 0:00:21.2]}
40... Kb4 {[%clk 0:00:48]} 41. g4 {[%clk 0:00:20.4]} 41... Kxc4 {[%clk 0:00:48]}
42. Ke3 {[%clk 0:00:21]} 42... Kc3 {[%clk 0:00:45.8]} 43. e5 {[%clk 0:00:18.6]}
43... dxe5 {[%clk 0:00:43.4]} 44. Ke4 {[%clk 0:00:19.2]} 44... c4 {[%clk
0:00:43.2]} 45. Kxe5 {[%clk 0:00:19.7]} 45... Kd2 {[%clk 0:00:43.1]} 46. Kd5
{[%clk 0:00:20.3]} 46... c3 {[%clk 0:00:42.4]} 47. a4 {[%clk 0:00:13.3]} 47...
c2 {[%clk 0:00:42]} 48. Bxc2 {[%clk 0:00:13.4]} 48... Kxc2 {[%clk 0:00:42.9]}
49. a5 {[%clk 0:00:14.3]} 49... Kb3 {[%clk 0:00:39.8]} 50. a6 {[%clk 0:00:14.9]}
50... bxa6 {[%clk 0:00:39.1]} 51. Kc6 {[%clk 0:00:15.2]} 51... Rxe6+ {[%clk
0:00:37.9]} 52. Kd7 {[%clk 0:00:16.1]} 52... Re1 {[%clk 0:00:37.3]} 0-1

[Event "Late-Titled-Tuesday-Blitz-December-26-2023"]
[Site "Chess.com"]
[Date "2023.12.26"]
[Round "2"]
[White "Abduzhaparov"]
[Black "liczner"]
[Result "0-1"]
[WhiteElo "2393"]
[BlackElo "2943"]
[TimeControl "180+1"]
[EndTime "14:17:47 PST"]
[Termination "liczner won on time"]

1. d4 {[%clk 0:03:00.9]} 1... Nf6 {[%clk 0:03:00]} 2. f3 {[%clk 0:03:00.9]} 2...
d5 {[%clk 0:02:59.3]} 3. e4 {[%clk 0:03:01.5]} 3... dxe4 {[%clk 0:02:59.2]} 4.
Nc3 {[%clk 0:03:02]} 4... exf3 {[%clk 0:02:53.8]} 5. Nxf3 {[%clk 0:03:02.9]}
5... Bg4 {[%clk 0:02:53.4]} 6. h3 {[%clk 0:03:02.4]} 6... Bxf3 {[%clk
0:02:53.1]} 7. Qxf3 {[%clk 0:03:03.3]} 7... c6 {[%clk 0:02:53.5]} 8. Be3 {[%clk
0:03:03.2]} 8... e6 {[%clk 0:02:50.6]} 9. Bd3 {[%clk 0:03:03.3]} 9... Be7 {[%clk
0:02:32.8]} 10. O-O {[%clk 0:03:03.1]} 10... O-O {[%clk 0:02:25.5]} 11. Rf2
{[%clk 0:03:03.3]} 11... Nbd7 {[%clk 0:02:24.8]} 12. Raf1 {[%clk 0:03:03.5]}
12... Qa5 {[%clk 0:01:52.2]} 13. Ne4 {[%clk 0:03:01.5]} 13... Qh5 {[%clk
0:01:32.6]} 14. g4 {[%clk 0:02:55.6]} 14... Qa5 {[%clk 0:01:25]} 15. Bg5 {[%clk
0:02:51]} 15... Nd5 {[%clk 0:00:56.4]} 16. c4 {[%clk 0:02:09.4]} 16... Bxg5
{[%clk 0:00:48.9]} 17. Nxg5 {[%clk 0:01:31.1]} 17... N5f6 {[%clk 0:00:49]} 18.
Qe3 {[%clk 0:01:29.3]} 18... Rae8 {[%clk 0:00:40.3]} 19. Nxf7 {[%clk 0:01:10.7]}
19... Rxf7 {[%clk 0:00:36.7]} 20. g5 {[%clk 0:01:08.9]} 20... Rff8 {[%clk
0:00:26.7]} 21. gxf6 {[%clk 0:01:04.3]} 21... Nxf6 {[%clk 0:00:27.6]} 22. Kh1
{[%clk 0:00:40.5]} 22... e5 {[%clk 0:00:27]} 23. Qg3 {[%clk 0:00:29]} 23... e4
{[%clk 0:00:19.4]} 24. Bb1 {[%clk 0:00:26.3]} 24... Qd8 {[%clk 0:00:13.9]} 25.
Qe3 {[%clk 0:00:20.4]} 25... Qd6 {[%clk 0:00:09.1]} 26. Rg1 {[%clk 0:00:20]}
26... g6 {[%clk 0:00:08.6]} 27. Rfg2 {[%clk 0:00:19]} 27... Rd8 {[%clk
0:00:08.3]} 28. Qh6 {[%clk 0:00:10.5]} 28... Rf7 {[%clk 0:00:06.5]} 29. d5
{[%clk 0:00:06.7]} 29... Rg7 {[%clk 0:00:03.9]} 30. dxc6 {[%clk 0:00:05.3]}
30... Qxc6 {[%clk 0:00:04.8]} 31. Qf4 {[%clk 0:00:02.7]} 31... Rf8 {[%clk
0:00:04.3]} 0-1

[Event "Late-Titled-Tuesday-Blitz-December-26-2023"]
[Site "Chess.com"]
[Date "2023.12.26"]
[Round "2"]
[White "a-z30"]
[Black "Viktor_Poddubnyi"]
[Result "1-0"]
[WhiteElo "2503"]
[BlackElo "2304"]
[TimeControl "180+1"]
[EndTime "14:17:48 PST"]
[Termination "a-z30 won on time"]

1. c4 {[%clk 0:03:00.9]} 1... g6 {[%clk 0:03:00.2]} 2. d4 {[%clk 0:02:58.8]}
2... Bg7 {[%clk 0:03:00.5]} 3. Nc3 {[%clk 0:02:59.1]} 3... c5 {[%clk 0:03:01]}
4. d5 {[%clk 0:02:58.5]} 4... f5 {[%clk 0:03:01.4]} 5. Qc2 {[%clk 0:02:49.1]}
5... Nf6 {[%clk 0:03:00.2]} 6. g3 {[%clk 0:02:48.5]} 6... O-O {[%clk 0:02:59.4]}
7. Bg2 {[%clk 0:02:48]} 7... d6 {[%clk 0:02:59.7]} 8. Nh3 {[%clk 0:02:31.7]}
8... h6 {[%clk 0:02:53.8]} 9. Nf4 {[%clk 0:02:27.3]} 9... g5 {[%clk 0:02:33.7]}
10. Ng6 {[%clk 0:02:26.5]} 10... Rf7 {[%clk 0:02:29.1]} 11. h4 {[%clk
0:02:26.1]} 11... g4 {[%clk 0:02:17.9]} 12. O-O {[%clk 0:02:04.9]} 12... Na6
{[%clk 0:02:16.7]} 13. a3 {[%clk 0:02:02.7]} 13... Nc7 {[%clk 0:02:15.7]} 14. b4
{[%clk 0:01:59]} 14... b6 {[%clk 0:01:58.7]} 15. Nf4 {[%clk 0:01:56.7]} 15...
Rb8 {[%clk 0:01:46.3]} 16. Bb2 {[%clk 0:01:55.6]} 16... cxb4 {[%clk 0:01:13.7]}
17. axb4 {[%clk 0:01:55]} 17... a5 {[%clk 0:01:14.2]} 18. b5 {[%clk 0:01:43.9]}
18... Bd7 {[%clk 0:01:01.2]} 19. Rac1 {[%clk 0:01:35.8]} 19... h5 {[%clk
0:00:56.8]} 20. e3 {[%clk 0:01:32.7]} 20... Bh6 {[%clk 0:00:42.7]} 21. Nce2
{[%clk 0:01:31.6]} 21... Nce8 {[%clk 0:00:26.5]} 22. Rfd1 {[%clk 0:01:28.8]}
22... Ng7 {[%clk 0:00:26]} 23. Nd4 {[%clk 0:01:25]} 23... Qc7 {[%clk 0:00:22.8]}
24. Nc6 {[%clk 0:01:14.8]} 24... Re8 {[%clk 0:00:21.8]} 25. Bc3 {[%clk
0:01:03.3]} 25... Bxf4 {[%clk 0:00:16.9]} 26. exf4 {[%clk 0:01:02.7]} 26... Ne4
{[%clk 0:00:16.9]} 27. Bxe4 {[%clk 0:01:00.6]} 27... fxe4 {[%clk 0:00:16.7]} 28.
Qxe4 {[%clk 0:00:46.7]} 28... Nf5 {[%clk 0:00:16.5]} 29. Re1 {[%clk 0:00:36.1]}
29... e6 {[%clk 0:00:11.9]} 30. dxe6 {[%clk 0:00:32.7]} 30... Rxe6 {[%clk
0:00:11.4]} 31. Qd3 {[%clk 0:00:32.4]} 31... Rxe1+ {[%clk 0:00:10]} 32. Rxe1
{[%clk 0:00:31.7]} 32... Bxc6 {[%clk 0:00:10.6]} 33. bxc6 {[%clk 0:00:28.5]}
33... Qxc6 {[%clk 0:00:11.5]} 34. Bb2 {[%clk 0:00:26.6]} 34... Qc5 {[%clk
0:00:09.5]} 35. Qc3 {[%clk 0:00:25.5]} 35... Kh7 {[%clk 0:00:01]} 36. Qh8+
{[%clk 0:00:22.1]} 36... Kg6 {[%clk 0:00:01.3]} 37. Re6+ {[%clk 0:00:22.3]} 1-0

[Event "Late-Titled-Tuesday-Blitz-December-26-2023"]
[Site "Chess.com"]
[Date "2023.12.26"]
[Round "2"]
[White "protectiago"]
[Black "Rakitic2010"]
[Result "0-1"]
[WhiteElo "2062"]
[BlackElo "2516"]
[TimeControl "180+1"]
[EndTime "14:17:49 PST"]
[Termination "Rakitic2010 won on time"]

1. d4 {[%clk 0:02:59.6]} 1... Nf6 {[%clk 0:03:00]} 2. c4 {[%clk 0:02:57.9]} 2...
c5 {[%clk 0:02:58.3]} 3. d5 {[%clk 0:02:57.5]} 3... e6 {[%clk 0:02:57.4]} 4. Nc3
{[%clk 0:02:57.1]} 4... exd5 {[%clk 0:02:57.1]} 5. cxd5 {[%clk 0:02:57.2]} 5...
d6 {[%clk 0:02:57.7]} 6. g3 {[%clk 0:02:56.9]} 6... g6 {[%clk 0:02:56.7]} 7. Bg2
{[%clk 0:02:56.6]} 7... Bg7 {[%clk 0:02:56.4]} 8. Nf3 {[%clk 0:02:56.9]} 8...
O-O {[%clk 0:02:56.2]} 9. O-O {[%clk 0:02:57.2]} 9... a6 {[%clk 0:02:50]} 10. a4
{[%clk 0:02:56.7]} 10... Re8 {[%clk 0:02:47.5]} 11. Bf4 {[%clk 0:02:44]} 11...
Bg4 {[%clk 0:02:44.6]} 12. Qb3 {[%clk 0:02:32.5]} 12... Nh5 {[%clk 0:02:31.4]}
13. Bg5 {[%clk 0:02:17.5]} 13... Qc8 {[%clk 0:02:24.6]} 14. Rfe1 {[%clk
0:02:03]} 14... h6 {[%clk 0:02:19.1]} 15. Bd2 {[%clk 0:01:59.1]} 15... Bh3
{[%clk 0:02:06.2]} 16. Bxh3 {[%clk 0:01:54.1]} 16... Qxh3 {[%clk 0:02:04.4]} 17.
Qxb7 {[%clk 0:01:53.9]} 17... Nd7 {[%clk 0:02:03.1]} 18. Qc6 {[%clk 0:01:44.2]}
18... Ne5 {[%clk 0:01:41.8]} 19. Qxd6 {[%clk 0:01:27.2]} 19... Ng4 {[%clk
0:01:41.4]} 20. e4 {[%clk 0:00:32.5]} 20... Be5 {[%clk 0:01:11.7]} 21. Qxc5
{[%clk 0:00:19.9]} 21... Rac8 {[%clk 0:01:10.5]} 22. Qb6 {[%clk 0:00:16.5]}
22... Rb8 {[%clk 0:01:00.4]} 23. Qxa6 {[%clk 0:00:16.8]} 23... Nxg3 {[%clk
0:00:55.6]} 24. fxg3 {[%clk 0:00:13.1]} 24... Bxg3 {[%clk 0:00:54.1]} 25. Qf1
{[%clk 0:00:11.4]} 25... Bxh2+ {[%clk 0:00:48.9]} 26. Kh1 {[%clk 0:00:06.6]}
26... Nf2+ {[%clk 0:00:45.7]} 27. Qxf2 {[%clk 0:00:06.4]} 27... Bg3+ {[%clk
0:00:46.1]} 28. Qh2 {[%clk 0:00:05.7]} 28... Bxh2 {[%clk 0:00:44.7]} 29. Nxh2
{[%clk 0:00:06.1]} 29... Rxb2 {[%clk 0:00:44.7]} 30. Rad1 {[%clk 0:00:05.3]}
30... Rxd2 {[%clk 0:00:44.5]} 31. Rxd2 {[%clk 0:00:05]} 31... Qxc3 {[%clk
0:00:45]} 32. Red1 {[%clk 0:00:05.5]} 32... Rxe4 {[%clk 0:00:39.3]} 33. d6
{[%clk 0:00:05.8]} 33... Re1+ {[%clk 0:00:36.8]} 34. Kg2 {[%clk 0:00:04.2]}
34... Qc6+ {[%clk 0:00:28.5]} 35. Nf3 {[%clk 0:00:03.6]} 35... Re3 {[%clk
0:00:19.4]} 36. Rf2 {[%clk 0:00:01.5]} 36... Rxf3 {[%clk 0:00:16.6]} 37. Rxf3
{[%clk 0:00:01.5]} 37... Qc2+ {[%clk 0:00:16.1]} 0-1

[Event "Late-Titled-Tuesday-Blitz-December-26-2023"]
[Site "Chess.com"]
[Date "2023.12.26"]
[Round "2"]
[White "Shankland"]
[Black "ozates"]
[Result "1-0"]
[WhiteElo "2957"]
[BlackElo "2604"]
[TimeControl "180+1"]
[EndTime "14:17:50 PST"]
[Termination "Shankland won by resignation"]

1. d4 {[%clk 0:03:00.9]} 1... Nf6 {[%clk 0:02:57.6]} 2. c4 {[%clk 0:03:00.6]}
2... e6 {[%clk 0:02:58.2]} 3. Nf3 {[%clk 0:03:01.2]} 3... d5 {[%clk 0:02:58.2]}
4. Nc3 {[%clk 0:03:01.5]} 4... c6 {[%clk 0:02:50.2]} 5. e3 {[%clk 0:03:01.3]}
5... Nbd7 {[%clk 0:02:50.1]} 6. Be2 {[%clk 0:03:01.9]} 6... dxc4 {[%clk
0:02:44.4]} 7. a4 {[%clk 0:03:01.4]} 7... Bd6 {[%clk 0:02:44.2]} 8. Nd2 {[%clk
0:03:00.2]} 8... Bc7 {[%clk 0:02:41.7]} 9. Nxc4 {[%clk 0:02:59.8]} 9... O-O
{[%clk 0:02:40.8]} 10. b3 {[%clk 0:02:59.1]} 10... e5 {[%clk 0:02:39.7]} 11. Ba3
{[%clk 0:02:59.1]} 11... Re8 {[%clk 0:02:39.8]} 12. d5 {[%clk 0:02:58.9]} 12...
cxd5 {[%clk 0:02:39]} 13. Nxd5 {[%clk 0:02:59]} 13... Nxd5 {[%clk 0:02:39.9]}
14. Qxd5 {[%clk 0:02:58.9]} 14... Nf6 {[%clk 0:02:29.5]} 15. Qxd8 {[%clk
0:02:53.2]} 15... Rxd8 {[%clk 0:02:30.4]} 16. Be7 {[%clk 0:02:48.4]} 16... Re8
{[%clk 0:02:30.5]} 17. Bd6 {[%clk 0:02:48.5]} 17... Bxd6 {[%clk 0:02:26.4]} 18.
Nxd6 {[%clk 0:02:49.4]} 18... Rd8 {[%clk 0:02:27.1]} 19. Nc4 {[%clk 0:02:31.4]}
19... Be6 {[%clk 0:02:23]} 20. O-O {[%clk 0:02:31.3]} 20... Ne4 {[%clk
0:02:19.9]} 21. Rfc1 {[%clk 0:02:30.9]} 21... f6 {[%clk 0:02:10.5]} 22. Bf3
{[%clk 0:02:25.6]} 22... Bd5 {[%clk 0:02:05.3]} 23. h4 {[%clk 0:02:19]} 23...
Nc5 {[%clk 0:01:55.5]} 24. Na5 {[%clk 0:01:55]} 24... Bxf3 {[%clk 0:01:37]} 25.
Rxc5 {[%clk 0:01:46.8]} 25... b6 {[%clk 0:01:35.6]} 26. Rc7 {[%clk 0:01:44.1]}
26... Bd5 {[%clk 0:01:28.5]} 27. Nc6 {[%clk 0:01:42.2]} 27... Bxc6 {[%clk
0:01:26.9]} 28. Rxc6 {[%clk 0:01:43.1]} 28... Rac8 {[%clk 0:01:23]} 29. Rac1
{[%clk 0:01:40.9]} 29... Rxc6 {[%clk 0:01:22.9]} 30. Rxc6 {[%clk 0:01:41.8]}
30... Rd7 {[%clk 0:01:23.6]} 31. b4 {[%clk 0:01:40.8]} 31... Kf7 {[%clk
0:01:17.8]} 32. g4 {[%clk 0:01:40.5]} 32... Kg6 {[%clk 0:01:10.7]} 33. Kg2
{[%clk 0:01:39.1]} 33... h5 {[%clk 0:01:10.5]} 34. g5 {[%clk 0:01:39.2]} 34...
Kf5 {[%clk 0:01:05.6]} 35. gxf6 {[%clk 0:01:38.4]} 35... gxf6 {[%clk 0:01:05.8]}
36. Kf3 {[%clk 0:01:38.6]} 36... Rb7 {[%clk 0:00:54.1]} 37. e4+ {[%clk
0:01:36.9]} 37... Kg6 {[%clk 0:00:53.6]} 38. Ke3 {[%clk 0:01:34]} 38... Rd7
{[%clk 0:00:53.3]} 39. a5 {[%clk 0:01:29.7]} 39... bxa5 {[%clk 0:00:48]} 40.
bxa5 {[%clk 0:01:30.6]} 40... Re7 {[%clk 0:00:37.4]} 41. a6 {[%clk 0:01:28.3]}
41... Rd7 {[%clk 0:00:37.6]} 42. f4 {[%clk 0:01:25.3]} 42... exf4+ {[%clk
0:00:29.2]} 43. Kxf4 {[%clk 0:01:26.2]} 43... Re7 {[%clk 0:00:25]} 44. Ke3
{[%clk 0:01:22.3]} 44... Kg7 {[%clk 0:00:20.5]} 45. Kd4 {[%clk 0:01:22]} 45...
Rd7+ {[%clk 0:00:17.6]} 46. Kc5 {[%clk 0:01:21.3]} 46... Re7 {[%clk 0:00:17.7]}
47. Kd5 {[%clk 0:01:19]} 47... Kg6 {[%clk 0:00:16.4]} 48. Re6 {[%clk 0:01:17.2]}
48... Rd7+ {[%clk 0:00:16.9]} 49. Kc6 {[%clk 0:01:17.3]} 49... Rd4 {[%clk
0:00:14]} 50. Kb7 {[%clk 0:01:14.6]} 50... Kf7 {[%clk 0:00:11.1]} 51. Rc6 {[%clk
0:01:14.7]} 51... Rxe4 {[%clk 0:00:10.7]} 52. Kxa7 {[%clk 0:01:14.9]} 52... Rxh4
{[%clk 0:00:10.9]} 53. Kb7 {[%clk 0:01:14.9]} 53... Ra4 {[%clk 0:00:10.8]} 54.
a7 {[%clk 0:01:15]} 54... Rxa7+ {[%clk 0:00:09.4]} 55. Kxa7 {[%clk 0:01:14.9]}
55... Kg6 {[%clk 0:00:07.5]} 56. Kb6 {[%clk 0:01:12.6]} 56... Kf5 {[%clk
0:00:07.5]} 57. Kc5 {[%clk 0:01:13.1]} 57... Ke5 {[%clk 0:00:06.8]} 58. Kc4
{[%clk 0:01:12.8]} 58... Ke4 {[%clk 0:00:04.3]} 59. Rxf6 {[%clk 0:01:10.1]} 1-0

[Event "Late-Titled-Tuesday-Blitz-December-26-2023"]
[Site "Chess.com"]
[Date "2023.12.26"]
[Round "2"]
[White "powermove"]
[Black "topce"]
[Result "0-1"]
[WhiteElo "2028"]
[BlackElo "2414"]
[TimeControl "180+1"]
[EndTime "14:17:50 PST"]
[Termination "topce won on time"]

1. d4 {[%clk 0:02:55.9]} 1... Nf6 {[%clk 0:02:59.2]} 2. c4 {[%clk 0:02:55.3]}
2... e6 {[%clk 0:02:58.5]} 3. Nf3 {[%clk 0:02:54.1]} 3... c5 {[%clk 0:02:58.3]}
4. d5 {[%clk 0:02:52.7]} 4... exd5 {[%clk 0:02:57.8]} 5. cxd5 {[%clk 0:02:52.8]}
5... d6 {[%clk 0:02:58.4]} 6. Nc3 {[%clk 0:02:51.9]} 6... g6 {[%clk 0:02:58.5]}
7. e4 {[%clk 0:02:49.9]} 7... Bg7 {[%clk 0:02:58.3]} 8. Bd3 {[%clk 0:02:46.2]}
8... O-O {[%clk 0:02:57.4]} 9. O-O {[%clk 0:02:32.3]} 9... Bg4 {[%clk
0:02:53.2]} 10. h3 {[%clk 0:02:32]} 10... Bxf3 {[%clk 0:02:54.1]} 11. Qxf3
{[%clk 0:02:30.9]} 11... Nbd7 {[%clk 0:02:55]} 12. Bf4 {[%clk 0:02:29.1]} 12...
Ne5 {[%clk 0:02:54.4]} 13. Bxe5 {[%clk 0:02:28.8]} 13... dxe5 {[%clk 0:02:55.3]}
14. a4 {[%clk 0:02:25.7]} 14... Ne8 {[%clk 0:02:54]} 15. d6 {[%clk 0:01:51.9]}
15... Nxd6 {[%clk 0:02:52.7]} 16. Rfd1 {[%clk 0:01:50.9]} 16... Rc8 {[%clk
0:02:39.6]} 17. Bc4 {[%clk 0:01:44.1]} 17... Qb6 {[%clk 0:02:23.7]} 18. Nd5
{[%clk 0:01:38.5]} 18... Qd8 {[%clk 0:02:22.1]} 19. Rdc1 {[%clk 0:01:30.6]}
19... Kh8 {[%clk 0:02:17.2]} 20. a5 {[%clk 0:01:11.8]} 20... f5 {[%clk
0:02:15.3]} 21. exf5 {[%clk 0:01:11.2]} 21... gxf5 {[%clk 0:02:14.4]} 22. Qb3
{[%clk 0:01:09.7]} 22... e4 {[%clk 0:01:57.1]} 23. Nf4 {[%clk 0:00:47.1]} 23...
Bd4 {[%clk 0:01:22.6]} 24. Ne6 {[%clk 0:00:41.1]} 24... Qh4 {[%clk 0:01:22.1]}
25. Nxf8 {[%clk 0:00:40.1]} 25... Qxf2+ {[%clk 0:01:08.5]} 26. Kh1 {[%clk
0:00:38.2]} 26... Rxf8 {[%clk 0:01:09.3]} 27. Rc2 {[%clk 0:00:24.2]} 27... Qh4
{[%clk 0:01:01.2]} 28. Bd5 {[%clk 0:00:20.7]} 28... Qe7 {[%clk 0:00:53.4]} 29.
Rf1 {[%clk 0:00:15.3]} 29... f4 {[%clk 0:00:43.4]} 30. Rd2 {[%clk 0:00:14.2]}
30... Be5 {[%clk 0:00:34.1]} 31. Qc2 {[%clk 0:00:10.8]} 31... Bd4 {[%clk
0:00:27.9]} 32. Qa4 {[%clk 0:00:10.3]} 32... Qe5 {[%clk 0:00:25.6]} 33. Qb3
{[%clk 0:00:06.1]} 33... Be3 {[%clk 0:00:19.1]} 34. Rdd1 {[%clk 0:00:04.7]}
34... Bd4 {[%clk 0:00:17.2]} 35. Rd2 {[%clk 0:00:02.8]} 35... f3 {[%clk
0:00:15.9]} 36. gxf3 {[%clk 0:00:02.2]} 36... Qg3 {[%clk 0:00:14.6]} 0-1

[Event "Late-Titled-Tuesday-Blitz-December-26-2023"]
[Site "Chess.com"]
[Date "2023.12.26"]
[Round "2"]
[White "Iball95"]
[Black "Aguiar94"]
[Result "0-1"]
[WhiteElo "2816"]
[BlackElo "2557"]
[TimeControl "180+1"]
[EndTime "14:17:51 PST"]
[Termination "Aguiar94 won by checkmate"]

1. e4 {[%clk 0:02:59.7]} 1... c5 {[%clk 0:02:59.4]} 2. Nf3 {[%clk 0:02:59.9]}
2... e6 {[%clk 0:02:59.5]} 3. Nc3 {[%clk 0:03:00.3]} 3... Nc6 {[%clk 0:02:59.3]}
4. d4 {[%clk 0:03:00.8]} 4... cxd4 {[%clk 0:03:00.2]} 5. Nxd4 {[%clk 0:03:01.3]}
5... Qc7 {[%clk 0:03:00.6]} 6. Nxc6 {[%clk 0:03:00.9]} 6... dxc6 {[%clk
0:02:59.1]} 7. f4 {[%clk 0:02:59.5]} 7... e5 {[%clk 0:02:48.6]} 8. Qf3 {[%clk
0:02:48.6]} 8... Bd6 {[%clk 0:02:43.9]} 9. f5 {[%clk 0:02:49.2]} 9... Nf6 {[%clk
0:02:42.7]} 10. Bc4 {[%clk 0:02:45.8]} 10... h6 {[%clk 0:02:41.6]} 11. O-O
{[%clk 0:02:44.9]} 11... b5 {[%clk 0:02:40.8]} 12. Bd3 {[%clk 0:02:43]} 12...
Bb7 {[%clk 0:02:33.6]} 13. a3 {[%clk 0:02:36.7]} 13... a6 {[%clk 0:02:25.5]} 14.
Be3 {[%clk 0:02:37.3]} 14... c5 {[%clk 0:02:18.3]} 15. Nd5 {[%clk 0:02:34.7]}
15... Bxd5 {[%clk 0:02:13.4]} 16. exd5 {[%clk 0:02:35.6]} 16... c4 {[%clk
0:02:14.3]} 17. Be4 {[%clk 0:02:35.3]} 17... O-O {[%clk 0:02:06.6]} 18. Kh1
{[%clk 0:02:32.7]} 18... Rad8 {[%clk 0:02:05]} 19. Rad1 {[%clk 0:02:32.4]} 19...
c3 {[%clk 0:02:00.5]} 20. b4 {[%clk 0:02:24.8]} 20... Qc4 {[%clk 0:01:55.2]} 21.
Bd3 {[%clk 0:02:16.3]} 21... Qxd5 {[%clk 0:01:47.6]} 22. Qg3 {[%clk 0:02:16.8]}
22... e4 {[%clk 0:01:43.9]} 23. Qh4 {[%clk 0:02:02.8]} 23... exd3 {[%clk
0:01:33.5]} 24. Bxh6 {[%clk 0:02:02.9]} 24... Qe4 {[%clk 0:01:18.9]} 25. Qg5
{[%clk 0:01:58.5]} 25... Qg4 {[%clk 0:01:18.7]} 26. Rxd3 {[%clk 0:01:53]} 26...
Qxg5 {[%clk 0:01:15.8]} 27. Bxg5 {[%clk 0:01:53.9]} 27... Be5 {[%clk 0:01:15.7]}
28. Rfd1 {[%clk 0:01:54.4]} 28... Rxd3 {[%clk 0:01:13.2]} 29. Rxd3 {[%clk
0:01:55.3]} 29... Ne4 {[%clk 0:01:09.9]} 30. Be3 {[%clk 0:01:53.7]} 30... Re8
{[%clk 0:01:07.9]} 31. g4 {[%clk 0:01:52.8]} 31... Bf6 {[%clk 0:00:56.6]} 32.
Kg2 {[%clk 0:01:48.6]} 32... Bg5 {[%clk 0:00:50.4]} 33. Bd4 {[%clk 0:01:42.3]}
33... Bd2 {[%clk 0:00:37.3]} 34. h4 {[%clk 0:01:37.1]} 34... Rd8 {[%clk
0:00:35.6]} 35. Kf3 {[%clk 0:01:35.2]} 35... Nf6 {[%clk 0:00:33.3]} 36. Ke2
{[%clk 0:01:29.1]} 36... Nxg4 {[%clk 0:00:29.5]} 37. Bxc3 {[%clk 0:01:29.6]}
37... Rxd3 {[%clk 0:00:27.9]} 38. Kxd3 {[%clk 0:01:30.5]} 38... Bxc3 {[%clk
0:00:27.4]} 39. Kxc3 {[%clk 0:01:31.4]} 39... Ne3 {[%clk 0:00:27.2]} 40. f6
{[%clk 0:01:29.3]} 40... gxf6 {[%clk 0:00:25.9]} 41. Kd3 {[%clk 0:01:29.7]}
41... Nc4 {[%clk 0:00:26.1]} 42. a4 {[%clk 0:01:30.4]} 42... Nb2+ {[%clk
0:00:26.2]} 43. Kd4 {[%clk 0:01:30.1]} 43... Nxa4 {[%clk 0:00:26.7]} 44. Kd5
{[%clk 0:01:30.8]} 44... Nc3+ {[%clk 0:00:22.2]} 45. Kc5 {[%clk 0:01:29.3]}
45... f5 {[%clk 0:00:20.3]} 46. Kd4 {[%clk 0:01:29.9]} 46... Na2 {[%clk
0:00:20.2]} 47. c3 {[%clk 0:01:28.6]} 47... f4 {[%clk 0:00:20.6]} 48. h5 {[%clk
0:01:28.6]} 48... Kh7 {[%clk 0:00:19.8]} 49. c4 {[%clk 0:01:29.3]} 49... Nxb4
{[%clk 0:00:19]} 50. c5 {[%clk 0:01:29.8]} 50... f3 {[%clk 0:00:15.8]} 51. Ke3
{[%clk 0:01:30.3]} 51... f2 {[%clk 0:00:16]} 52. Kxf2 {[%clk 0:01:30.5]} 52...
Nd3+ {[%clk 0:00:16.6]} 53. Ke3 {[%clk 0:01:31.2]} 53... Nxc5 {[%clk 0:00:17.5]}
54. Kd4 {[%clk 0:01:32.1]} 54... Ne6+ {[%clk 0:00:17.9]} 55. Ke5 {[%clk
0:01:32.7]} 55... b4 {[%clk 0:00:17.8]} 56. Kf6 {[%clk 0:01:33.6]} 56... b3
{[%clk 0:00:18.3]} 57. h6 {[%clk 0:01:34.5]} 57... b2 {[%clk 0:00:18.3]} 58. Kf5
{[%clk 0:01:35.4]} 58... b1=Q+ {[%clk 0:00:18.2]} 59. Kf6 {[%clk 0:01:36.3]}
59... Qg6+ {[%clk 0:00:18.1]} 60. Ke5 {[%clk 0:01:37.2]} 60... Kxh6 {[%clk
0:00:16.9]} 61. Kd5 {[%clk 0:01:37.8]} 61... Ng7 {[%clk 0:00:17.3]} 62. Ke5
{[%clk 0:01:38.2]} 62... Qe6+ {[%clk 0:00:17.7]} 63. Kf4 {[%clk 0:01:39.1]}
63... f5 {[%clk 0:00:14.9]} 64. Kf3 {[%clk 0:01:40]} 64... Qe4+ {[%clk 0:00:15]}
65. Kg3 {[%clk 0:01:40.9]} 65... Qe3+ {[%clk 0:00:15.3]} 66. Kh4 {[%clk
0:01:41.8]} 66... Qf4+ {[%clk 0:00:13.5]} 67. Kh3 {[%clk 0:01:42.7]} 67... Qg4+
{[%clk 0:00:13.4]} 68. Kh2 {[%clk 0:01:43.6]} 68... Nh5 {[%clk 0:00:12.6]} 69.
Kh1 {[%clk 0:01:44.5]} 69... Nf4 {[%clk 0:00:12.9]} 70. Kh2 {[%clk 0:01:45.4]}
70... Qg2# {[%clk 0:00:13.8]} 0-1